[Event "Titled Tuesday Blitz March 21 Early 2023"]
[White "Shevtchenko, Olesya"]
[Black "Demin, Vladimir"]
[WhiteFideId "24131890"]
[BlackFideId "4167457"]
[WhiteElo "2003"]
[BlackElo "2617"]
[Result "1-0"]
[Round "11"]
[TimeControl "180+2"]
[Date "2023.03.21"]
[WhiteClock "0:01:18"]
[BlackClock "0:00:19"]

1. e4 {[%clk 0:02:58]}  e5 {[%clk 0:02:59]} 2. Nf3 {[%clk 0:02:58]}  Nc6 {[%clk 0:02:59]} 3. Nc3 {[%clk 0:02:59]}  Nf6 {[%clk 0:02:58]} 4. d4 {[%clk 0:02:59]}  Bb4 {[%clk 0:02:56]} 5. dxe5 {[%clk 0:02:58]}  Nxe4 {[%clk 0:02:55]} 6. Bd2 {[%clk 0:02:59]}  Bxc3 {[%clk 0:02:54]} 7. Bxc3 {[%clk 0:02:58]}  Nxc3 {[%clk 0:02:54]} 8. bxc3 {[%clk 0:02:59]}  O-O {[%clk 0:02:53]} 9. Bd3 {[%clk 0:03:00]}  Re8 {[%clk 0:02:51]} 10. O-O {[%clk 0:02:59]}  Nxe5 {[%clk 0:02:36]} 11. Nxe5 {[%clk 0:02:58]}  Rxe5 {[%clk 0:02:35]} 12. Re1 {[%clk 0:02:53]}  Rxe1+ {[%clk 0:02:33]} 13. Qxe1 {[%clk 0:02:54]}  d5 {[%clk 0:02:30]} 14. Qe5 {[%clk 0:02:53]}  c6 {[%clk 0:02:21]} 15. Re1 {[%clk 0:02:45]}  Bd7 {[%clk 0:02:06]} 16. f4 {[%clk 0:02:26]}  Qe8 {[%clk 0:02:00]} 17. Bxh7+ {[%clk 0:02:23]}  Kh8 {[%clk 0:01:52]} 18. Bd3 {[%clk 0:02:09]}  Qxe5 {[%clk 0:01:48]} 19. fxe5 {[%clk 0:02:10]}  Re8 {[%clk 0:01:45]} 20. Kf2 {[%clk 0:02:11]}  Kg8 {[%clk 0:01:38]} 21. Kf3 {[%clk 0:02:10]}  f6 {[%clk 0:01:37]} 22. Kf4 {[%clk 0:02:10]}  Kf7 {[%clk 0:01:36]} 23. h4 {[%clk 0:02:08]}  g6 {[%clk 0:01:23]} 24. Re2 {[%clk 0:01:59]}  a5 {[%clk 0:01:19]} 25. a3 {[%clk 0:01:56]}  Rh8 {[%clk 0:01:12]} 26. g3 {[%clk 0:01:55]}  f5 {[%clk 0:00:52]} 27. c4 {[%clk 0:01:53]}  Be6 {[%clk 0:00:47]} 28. c5 {[%clk 0:01:50]}  b6 {[%clk 0:00:40]} 29. cxb6 {[%clk 0:01:42]}  Rb8 {[%clk 0:00:39]} 30. h5 {[%clk 0:01:42]}  Rxb6 {[%clk 0:00:36]} 31. hxg6+ {[%clk 0:01:41]}  Kxg6 {[%clk 0:00:35]} 32. g4 {[%clk 0:01:42]}  Kf7 {[%clk 0:00:30]} 33. gxf5 {[%clk 0:01:41]}  Bc8 {[%clk 0:00:31]} 34. Rh2 {[%clk 0:01:38]}  Rb1 {[%clk 0:00:30]} 35. Rh7+ {[%clk 0:01:37]}  Kg8 {[%clk 0:00:29]} 36. f6 {[%clk 0:01:37]}  c5 {[%clk 0:00:28]} 37. Rg7+ {[%clk 0:01:29]}  Kf8 {[%clk 0:00:28]} 38. Rc7 {[%clk 0:01:26]}  Be6 {[%clk 0:00:28]} 39. Rxc5 {[%clk 0:01:25]}  a4 {[%clk 0:00:26]} 40. Rc6 {[%clk 0:01:24]}  Kf7 {[%clk 0:00:25]} 41. Rc7+ {[%clk 0:01:24]}  Kf8 {[%clk 0:00:25]} 42. Re7 {[%clk 0:01:21]}  Bg8 {[%clk 0:00:21]} 43. Bg6 {[%clk 0:01:18]}  Rf1+ {[%clk 0:00:19]} 44. Ke3 {[%clk 0:01:18]} 1-0


[Site "https://www.chess.com"]

[Event "Titled Tuesday Blitz March 21 Early 2023"]
[White "djokovic74"]
[Black "Carrasco Miranda, Andres"]
[BlackFideId "3405990"]
[WhiteElo "2554"]
[BlackElo "2183"]
[Result "1-0"]
[Round "11"]
[TimeControl "180+2"]
[Date "2023.03.21"]
[WhiteClock "0:00:06"]
[BlackClock "0:00:01"]

1. e4 {[%clk 0:03:00]}  c5 {[%clk 0:02:55]} 2. Nf3 {[%clk 0:03:01]}  d6 {[%clk 0:02:53]} 3. d4 {[%clk 0:03:02]}  cxd4 {[%clk 0:02:53]} 4. Nxd4 {[%clk 0:03:02]}  Nf6 {[%clk 0:02:54]} 5. Nc3 {[%clk 0:03:03]}  a6 {[%clk 0:02:55]} 6. Be2 {[%clk 0:03:03]}  e5 {[%clk 0:02:54]} 7. Nb3 {[%clk 0:03:04]}  Be7 {[%clk 0:02:55]} 8. O-O {[%clk 0:03:04]}  O-O {[%clk 0:02:54]} 9. Kh1 {[%clk 0:03:04]}  Be6 {[%clk 0:02:52]} 10. f4 {[%clk 0:03:04]}  exf4 {[%clk 0:02:52]} 11. Bxf4 {[%clk 0:03:04]}  Nc6 {[%clk 0:02:53]} 12. Qe1 {[%clk 0:03:04]}  Ne8 {[%clk 0:02:52]} 13. Rd1 {[%clk 0:03:05]}  Qc7 {[%clk 0:02:47]} 14. Qg3 {[%clk 0:03:02]}  Ne5 {[%clk 0:02:44]} 15. Nd4 {[%clk 0:02:59]}  Bf6 {[%clk 0:02:20]} 16. Nf5 {[%clk 0:02:55]}  Bxf5 {[%clk 0:02:15]} 17. exf5 {[%clk 0:02:50]}  Qb6 {[%clk 0:02:09]} 18. Nd5 {[%clk 0:02:38]}  Qxb2 {[%clk 0:02:04]} 19. Bh6 {[%clk 0:02:29]}  Nd7 {[%clk 0:01:41]} 20. c3 {[%clk 0:01:44]}  Qxe2 {[%clk 0:01:30]} 21. Nxf6+ {[%clk 0:01:42]}  Ndxf6 {[%clk 0:01:29]} 22. Bg5 {[%clk 0:01:18]}  Qg4 {[%clk 0:01:24]} 23. Qe3 {[%clk 0:01:18]}  d5 {[%clk 0:01:15]} 24. h3 {[%clk 0:00:57]}  Qh5 {[%clk 0:01:02]} 25. Rd4 {[%clk 0:00:53]}  Ne4 {[%clk 0:01:01]} 26. Rxe4 {[%clk 0:00:52]}  dxe4 {[%clk 0:00:57]} 27. g4 {[%clk 0:00:51]}  Qxg5 {[%clk 0:00:54]} 28. Qxg5 {[%clk 0:00:52]}  Nf6 {[%clk 0:00:54]} 29. Rd1 {[%clk 0:00:37]}  Rad8 {[%clk 0:00:52]} 30. Rxd8 {[%clk 0:00:29]}  Rxd8 {[%clk 0:00:53]} 31. Qe3 {[%clk 0:00:29]}  Rd3 {[%clk 0:00:51]} 32. Qb6 {[%clk 0:00:29]}  e3 {[%clk 0:00:42]} 33. Kg2 {[%clk 0:00:16]}  Rd2+ {[%clk 0:00:33]} 34. Kf1 {[%clk 0:00:11]}  h5 {[%clk 0:00:28]} 35. Qxe3 {[%clk 0:00:09]}  Rxa2 {[%clk 0:00:27]} 36. g5 {[%clk 0:00:08]}  Nd5 {[%clk 0:00:21]} 37. Qe8+ {[%clk 0:00:08]}  Kh7 {[%clk 0:00:20]} 38. Qxf7 {[%clk 0:00:03]}  Ra1+ {[%clk 0:00:19]} 39. Kf2 {[%clk 0:00:02]}  Nf4 {[%clk 0:00:09]} 40. f6 {[%clk 0:00:02]}  Nxh3+ {[%clk 0:00:02]} 41. Kg3 {[%clk 0:00:02]}  Rg1+ {[%clk 0:00:01]} 42. Kxh3 {[%clk 0:00:02]}  Rxg5 {[%clk 0:00:02]} 43. fxg7 {[%clk 0:00:02]}  Rxg7 {[%clk 0:00:02]} 44. Qf5+ {[%clk 0:00:03]}  Kg8 {[%clk 0:00:03]} 45. Qc8+ {[%clk 0:00:03]}  Kh7 {[%clk 0:00:03]} 46. Kh4 {[%clk 0:00:03]}  Rf7 {[%clk 0:00:01]} 47. Kxh5 {[%clk 0:00:03]}  Kg7 {[%clk 0:00:02]} 48. Qg4+ {[%clk 0:00:02]}  Kf8 {[%clk 0:00:02]} 49. Qc8+ {[%clk 0:00:03]}  Ke7 {[%clk 0:00:03]} 50. Qxb7+ {[%clk 0:00:03]}  Kf6 {[%clk 0:00:03]} 51. Qxa6+ {[%clk 0:00:04]}  Kf5 {[%clk 0:00:03]} 52. Qf1+ {[%clk 0:00:03]}  Ke6 {[%clk 0:00:03]} 53. Qe2+ {[%clk 0:00:04]}  Kf5 {[%clk 0:00:03]} 54. Qf3+ {[%clk 0:00:03]}  Ke6 {[%clk 0:00:03]} 55. Qe4+ {[%clk 0:00:04]}  Kd6 {[%clk 0:00:02]} 56. Kg4 {[%clk 0:00:04]}  Re7 {[%clk 0:00:02]} 57. Qd4+ {[%clk 0:00:04]}  Kc6 {[%clk 0:00:02]} 58. Kf4 {[%clk 0:00:05]}  Rd7 {[%clk 0:00:02]} 59. Qc4+ {[%clk 0:00:05]}  Kb6 {[%clk 0:00:02]} 60. Ke4 {[%clk 0:00:06]}  Rc7 {[%clk 0:00:02]} 61. Qb4+ {[%clk 0:00:06]}  Kc6 {[%clk 0:00:02]} 62. Kd3 {[%clk 0:00:07]}  Rd7+ {[%clk 0:00:03]} 63. Kc2 {[%clk 0:00:07]}  Rb7 {[%clk 0:00:04]} 64. Qh4 {[%clk 0:00:07]}  Kb6 {[%clk 0:00:04]} 65. c4 {[%clk 0:00:07]}  Kc5 {[%clk 0:00:04]} 66. Kc3 {[%clk 0:00:07]}  Rc7 {[%clk 0:00:03]} 67. Qg5+ {[%clk 0:00:07]}  Kb6 {[%clk 0:00:04]} 68. Qb5+ {[%clk 0:00:07]}  Ka7 {[%clk 0:00:03]} 69. c5 {[%clk 0:00:07]}  Rb7 {[%clk 0:00:03]} 70. Qa5+ {[%clk 0:00:07]}  Kb8 {[%clk 0:00:03]} 71. Kc4 {[%clk 0:00:07]}  Kc8 {[%clk 0:00:03]} 72. Qa8+ {[%clk 0:00:07]}  Kc7 {[%clk 0:00:03]} 73. Qh8 {[%clk 0:00:07]}  Kc6 {[%clk 0:00:01]} 74. Qh1+ {[%clk 0:00:05]}  Kc7 {[%clk 0:00:01]} 75. Kd5 {[%clk 0:00:06]} 1-0


[Site "https://www.chess.com"]

[Event "Titled Tuesday Blitz March 21 Early 2023"]
[White "Valle Maytin, Luis Enrique"]
[Black "Janaszak, Dawid"]
[WhiteFideId "3503666"]
[BlackFideId "1119206"]
[WhiteElo "2225"]
[BlackElo "2220"]
[Result "0-1"]
[Round "11"]
[TimeControl "180+2"]
[Date "2023.03.21"]
[WhiteClock "0:00:01"]
[BlackClock "0:00:36"]

1. e4 {[%clk 0:03:00]}  c5 {[%clk 0:02:59]} 2. Nf3 {[%clk 0:03:00]}  Nc6 {[%clk 0:02:59]} 3. d4 {[%clk 0:03:01]}  cxd4 {[%clk 0:03:00]} 4. Nxd4 {[%clk 0:03:02]}  e5 {[%clk 0:03:01]} 5. Nb5 {[%clk 0:03:02]}  d6 {[%clk 0:03:01]} 6. c4 {[%clk 0:02:58]}  g6 {[%clk 0:02:58]} 7. N1c3 {[%clk 0:02:56]}  a6 {[%clk 0:02:58]} 8. Na3 {[%clk 0:02:56]}  Bg7 {[%clk 0:02:58]} 9. Nc2 {[%clk 0:02:56]}  Nf6 {[%clk 0:02:58]} 10. Be2 {[%clk 0:02:55]}  O-O {[%clk 0:02:58]} 11. Be3 {[%clk 0:02:55]}  Be6 {[%clk 0:02:58]} 12. O-O {[%clk 0:02:41]}  Rc8 {[%clk 0:02:57]} 13. Rc1 {[%clk 0:02:27]}  Na5 {[%clk 0:02:55]} 14. b3 {[%clk 0:01:34]}  b5 {[%clk 0:02:55]} 15. Nb4 {[%clk 0:01:34]}  bxc4 {[%clk 0:02:46]} 16. Nbd5 {[%clk 0:01:34]}  Bxd5 {[%clk 0:02:34]} 17. Nxd5 {[%clk 0:01:34]}  Nc6 {[%clk 0:01:47]} 18. Rxc4 {[%clk 0:01:22]}  Nxd5 {[%clk 0:01:47]} 19. Qxd5 {[%clk 0:01:17]}  Nd4 {[%clk 0:01:47]} 20. Bxd4 {[%clk 0:01:05]}  exd4 {[%clk 0:01:44]} 21. Rfc1 {[%clk 0:01:05]}  Rxc4 {[%clk 0:01:38]} 22. Rxc4 {[%clk 0:01:05]}  Re8 {[%clk 0:01:27]} 23. Rc6 {[%clk 0:00:56]}  Re5 {[%clk 0:00:55]} 24. Qc4 {[%clk 0:00:42]}  Qg5 {[%clk 0:00:40]} 25. Rc8+ {[%clk 0:00:21]}  Bf8 {[%clk 0:00:40]} 26. Bd3 {[%clk 0:00:15]}  d5 {[%clk 0:00:33]} 27. Qc5 {[%clk 0:00:10]}  Qe7 {[%clk 0:00:33]} 28. Qxe7 {[%clk 0:00:07]}  Rxe7 {[%clk 0:00:34]} 29. exd5 {[%clk 0:00:07]}  Re1+ {[%clk 0:00:35]} 30. Bf1 {[%clk 0:00:07]}  d3 {[%clk 0:00:35]} 31. d6 {[%clk 0:00:05]}  d2 {[%clk 0:00:35]} 32. d7 {[%clk 0:00:01]}  Rxf1+ {[%clk 0:00:35]} 33. Kxf1 {[%clk 0:00:01]}  d1=Q# {[%clk 0:00:36]} 0-1


[Site "https://www.chess.com"]

[Event "Titled Tuesday Blitz March 21 Early 2023"]
[White "Liu, Casper"]
[Black "Belov, Alexei"]
[WhiteFideId "1454153"]
[BlackFideId "4128206"]
[WhiteElo "2221"]
[BlackElo "2480"]
[Result "1-0"]
[Round "11"]
[TimeControl "180+2"]
[Date "2023.03.21"]
[WhiteClock "0:00:07"]
[BlackClock "0:00:15"]

1. d4 {[%clk 0:03:00]}  e6 {[%clk 0:03:00]} 2. c4 {[%clk 0:03:01]}  d5 {[%clk 0:03:00]} 3. Nc3 {[%clk 0:03:01]}  Be7 {[%clk 0:03:00]} 4. cxd5 {[%clk 0:02:57]}  exd5 {[%clk 0:03:00]} 5. Nf3 {[%clk 0:02:56]}  c6 {[%clk 0:03:00]} 6. Qc2 {[%clk 0:02:48]}  g6 {[%clk 0:03:00]} 7. h4 {[%clk 0:02:47]}  Bf5 {[%clk 0:02:59]} 8. Qb3 {[%clk 0:02:45]}  Qb6 {[%clk 0:02:59]} 9. h5 {[%clk 0:02:42]}  Nf6 {[%clk 0:02:55]} 10. hxg6 {[%clk 0:02:42]}  fxg6 {[%clk 0:02:55]} 11. Bg5 {[%clk 0:02:41]}  O-O {[%clk 0:02:50]} 12. e3 {[%clk 0:02:31]}  Nbd7 {[%clk 0:02:48]} 13. Ne5 {[%clk 0:02:25]}  Rae8 {[%clk 0:02:36]} 14. Bh6 {[%clk 0:02:10]}  Nxe5 {[%clk 0:02:15]} 15. dxe5 {[%clk 0:02:11]}  Ng4 {[%clk 0:02:06]} 16. Bxf8 {[%clk 0:02:10]}  Bxf8 {[%clk 0:02:02]} 17. Be2 {[%clk 0:01:15]}  Nxe5 {[%clk 0:02:01]} 18. Qxb6 {[%clk 0:01:14]}  axb6 {[%clk 0:02:01]} 19. O-O-O {[%clk 0:01:14]}  b5 {[%clk 0:01:57]} 20. Rh4 {[%clk 0:01:12]}  b4 {[%clk 0:01:47]} 21. Nb1 {[%clk 0:00:58]}  Ra8 {[%clk 0:01:29]} 22. a3 {[%clk 0:00:47]}  bxa3 {[%clk 0:01:28]} 23. Nxa3 {[%clk 0:00:44]}  Bxa3 {[%clk 0:01:27]} 24. bxa3 {[%clk 0:00:44]}  Rxa3 {[%clk 0:01:27]} 25. Kb2 {[%clk 0:00:45]}  Ra5 {[%clk 0:01:20]} 26. Rb4 {[%clk 0:00:45]}  Rc5 {[%clk 0:01:16]} 27. Rc1 {[%clk 0:00:42]}  Rxc1 {[%clk 0:01:07]} 28. Kxc1 {[%clk 0:00:42]}  b5 {[%clk 0:01:03]} 29. Kd2 {[%clk 0:00:37]}  Kf7 {[%clk 0:01:00]} 30. Kc3 {[%clk 0:00:35]}  Ke6 {[%clk 0:00:59]} 31. f3 {[%clk 0:00:15]}  h5 {[%clk 0:00:57]} 32. e4 {[%clk 0:00:11]}  dxe4 {[%clk 0:00:50]} 33. g4 {[%clk 0:00:11]}  hxg4 {[%clk 0:00:44]} 34. fxe4 {[%clk 0:00:11]}  g3 {[%clk 0:00:35]} 35. exf5+ {[%clk 0:00:11]}  gxf5 {[%clk 0:00:34]} 36. Kd4 {[%clk 0:00:09]}  f4 {[%clk 0:00:25]} 37. Ke4 {[%clk 0:00:09]}  g2 {[%clk 0:00:24]} 38. Rb1 {[%clk 0:00:09]}  b4 {[%clk 0:00:17]} 39. Kxf4 {[%clk 0:00:07]}  c5 {[%clk 0:00:17]} 40. Bf3 {[%clk 0:00:05]}  Nxf3 {[%clk 0:00:15]} 41. Kxf3 {[%clk 0:00:04]}  Kd5 {[%clk 0:00:16]} 42. Kxg2 {[%clk 0:00:05]}  Kd4 {[%clk 0:00:16]} 43. Kf2 {[%clk 0:00:05]}  Kd3 {[%clk 0:00:17]} 44. Ke1 {[%clk 0:00:02]}  Kc2 {[%clk 0:00:17]} 45. Rd1 {[%clk 0:00:02]}  c4 {[%clk 0:00:17]} 46. Rd2+ {[%clk 0:00:02]}  Kc1 {[%clk 0:00:15]} 47. Rd1+ {[%clk 0:00:03]}  Kc2 {[%clk 0:00:16]} 48. Rd2+ {[%clk 0:00:04]}  Kc3 {[%clk 0:00:16]} 49. Kd1 {[%clk 0:00:03]}  b3 {[%clk 0:00:16]} 50. Kc1 {[%clk 0:00:04]}  Kb4 {[%clk 0:00:15]} 51. Rd8 {[%clk 0:00:05]}  Kc3 {[%clk 0:00:15]} 52. Kb1 {[%clk 0:00:04]}  Kb4 {[%clk 0:00:14]} 53. Rb8+ {[%clk 0:00:04]}  Kc3 {[%clk 0:00:15]} 54. Rc8 {[%clk 0:00:05]}  Kd3 {[%clk 0:00:15]} 55. Kb2 {[%clk 0:00:05]}  Kd4 {[%clk 0:00:15]} 56. Rc7 {[%clk 0:00:06]}  Kd3 {[%clk 0:00:15]} 57. Rc6 {[%clk 0:00:06]}  Kd4 {[%clk 0:00:15]} 58. Rc8 {[%clk 0:00:06]}  Kd3 {[%clk 0:00:15]} 59. Rd8+ {[%clk 0:00:06]}  Ke4 {[%clk 0:00:15]} 60. Kc3 {[%clk 0:00:07]}  Ke3 {[%clk 0:00:15]} 61. Kxc4 {[%clk 0:00:07]} 1-0


[Site "https://www.chess.com"]

[Event "Titled Tuesday Blitz March 21 Early 2023"]
[White "Guzman Moneo, Alberto"]
[Black "Yosha_Iglesias"]
[WhiteFideId "2209616"]
[WhiteElo "2157"]
[BlackElo "2465"]
[Result "0-1"]
[Round "11"]
[TimeControl "180+2"]
[Date "2023.03.21"]
[WhiteClock "0:00:04"]
[BlackClock "0:00:25"]

1. e4 {[%clk 0:03:00]}  d6 {[%clk 0:02:57]} 2. d4 {[%clk 0:03:00]}  Nf6 {[%clk 0:02:57]} 3. Nc3 {[%clk 0:03:00]}  e5 {[%clk 0:02:57]} 4. Nf3 {[%clk 0:03:00]}  Nbd7 {[%clk 0:02:57]} 5. Bc4 {[%clk 0:03:00]}  Be7 {[%clk 0:02:56]} 6. a4 {[%clk 0:03:00]}  c6 {[%clk 0:02:56]} 7. a5 {[%clk 0:02:55]}  O-O {[%clk 0:02:42]} 8. O-O {[%clk 0:02:53]}  Rb8 {[%clk 0:02:38]} 9. Be3 {[%clk 0:02:39]}  Ng4 {[%clk 0:02:32]} 10. Bd2 {[%clk 0:02:30]}  b5 {[%clk 0:02:31]} 11. axb6 {[%clk 0:02:30]}  axb6 {[%clk 0:02:31]} 12. d5 {[%clk 0:02:27]}  b5 {[%clk 0:02:23]} 13. dxc6 {[%clk 0:02:22]}  bxc4 {[%clk 0:02:23]} 14. cxd7 {[%clk 0:02:20]}  Bxd7 {[%clk 0:02:16]} 15. Ra2 {[%clk 0:01:59]}  h6 {[%clk 0:02:08]} 16. Nd5 {[%clk 0:01:32]}  Nf6 {[%clk 0:02:05]} 17. Ba5 {[%clk 0:01:31]}  Qe8 {[%clk 0:02:00]} 18. Nxe7+ {[%clk 0:01:13]}  Qxe7 {[%clk 0:02:00]} 19. Bc7 {[%clk 0:01:12]}  Nxe4 {[%clk 0:01:56]} 20. Bxb8 {[%clk 0:01:09]}  Rxb8 {[%clk 0:01:57]} 21. Re1 {[%clk 0:01:06]}  Bc6 {[%clk 0:01:54]} 22. Ra6 {[%clk 0:00:58]}  Qb7 {[%clk 0:01:48]} 23. Qa1 {[%clk 0:00:57]}  Ng5 {[%clk 0:01:39]} 24. Nxg5 {[%clk 0:00:52]}  hxg5 {[%clk 0:01:40]} 25. f3 {[%clk 0:00:42]}  g4 {[%clk 0:01:40]} 26. fxg4 {[%clk 0:00:36]}  Bxg2 {[%clk 0:01:37]} 27. Rxd6 {[%clk 0:00:29]}  Bh3 {[%clk 0:01:34]} 28. Re2 {[%clk 0:00:28]}  Qf3 {[%clk 0:01:34]} 29. Qe1 {[%clk 0:00:19]}  Qxg4+ {[%clk 0:01:29]} 30. Kh1 {[%clk 0:00:18]}  c3 {[%clk 0:01:16]} 31. b3 {[%clk 0:00:17]}  e4 {[%clk 0:00:55]} 32. Rd4 {[%clk 0:00:14]}  f5 {[%clk 0:00:52]} 33. Rf2 {[%clk 0:00:10]}  Re8 {[%clk 0:00:49]} 34. Qe2 {[%clk 0:00:04]}  Qg5 {[%clk 0:00:43]} 35. Rd1 {[%clk 0:00:03]}  Bg4 {[%clk 0:00:40]} 36. Qe1 {[%clk 0:00:02]}  Bxd1 {[%clk 0:00:35]} 37. Qxd1 {[%clk 0:00:02]}  e3 {[%clk 0:00:34]} 38. Rg2 {[%clk 0:00:03]}  Qf4 {[%clk 0:00:33]} 39. Qg1 {[%clk 0:00:03]}  Re7 {[%clk 0:00:31]} 40. h3 {[%clk 0:00:03]}  e2 {[%clk 0:00:30]} 41. Qe1 {[%clk 0:00:03]}  Qf1+ {[%clk 0:00:29]} 42. Rg1 {[%clk 0:00:04]}  Qf3+ {[%clk 0:00:27]} 43. Kh2 {[%clk 0:00:04]}  Re3 {[%clk 0:00:26]} 44. Rg3 {[%clk 0:00:04]}  Qxg3+ {[%clk 0:00:25]} 0-1


[Site "https://www.chess.com"]

[Event "Titled Tuesday Blitz March 21 Early 2023"]
[White "Escanor89"]
[Black "Ruge, Edison"]
[BlackFideId "4401000"]
[WhiteElo "2450"]
[BlackElo "2175"]
[Result "1-0"]
[Round "11"]
[TimeControl "180+2"]
[Date "2023.03.21"]
[WhiteClock "0:00:10"]
[BlackClock "0:00:03"]

1. c4 {[%clk 0:03:00]}  e5 {[%clk 0:02:59]} 2. Nc3 {[%clk 0:03:01]}  Nc6 {[%clk 0:02:59]} 3. Nf3 {[%clk 0:03:00]}  d6 {[%clk 0:02:59]} 4. d4 {[%clk 0:03:00]}  Be7 {[%clk 0:02:58]} 5. g3 {[%clk 0:02:55]}  Nf6 {[%clk 0:02:58]} 6. Bg2 {[%clk 0:02:55]}  O-O {[%clk 0:02:58]} 7. O-O {[%clk 0:02:56]}  Bg4 {[%clk 0:02:53]} 8. dxe5 {[%clk 0:02:48]}  dxe5 {[%clk 0:02:51]} 9. Nd5 {[%clk 0:02:48]}  h6 {[%clk 0:02:41]} 10. b3 {[%clk 0:02:37]}  Bc5 {[%clk 0:02:08]} 11. Bb2 {[%clk 0:02:32]}  Re8 {[%clk 0:02:06]} 12. Nd2 {[%clk 0:02:05]}  Nxd5 {[%clk 0:02:01]} 13. cxd5 {[%clk 0:02:00]}  Nd4 {[%clk 0:02:01]} 14. Re1 {[%clk 0:01:58]}  f5 {[%clk 0:01:32]} 15. Rc1 {[%clk 0:01:49]}  Qe7 {[%clk 0:01:06]} 16. Nf3 {[%clk 0:01:22]}  Nxf3+ {[%clk 0:00:58]} 17. exf3 {[%clk 0:01:22]}  Bh5 {[%clk 0:00:57]} 18. Rxe5 {[%clk 0:01:04]}  Qd6 {[%clk 0:00:51]} 19. Qe1 {[%clk 0:00:19]}  Qb6 {[%clk 0:00:44]} 20. f4 {[%clk 0:00:18]}  Bd6 {[%clk 0:00:37]} 21. Re6 {[%clk 0:00:17]}  Bf7 {[%clk 0:00:35]} 22. Rxe8+ {[%clk 0:00:17]}  Rxe8 {[%clk 0:00:34]} 23. Qc3 {[%clk 0:00:18]}  Bf8 {[%clk 0:00:31]} 24. Re1 {[%clk 0:00:17]}  Rxe1+ {[%clk 0:00:30]} 25. Qxe1 {[%clk 0:00:17]}  Bc5 {[%clk 0:00:27]} 26. Qe5 {[%clk 0:00:15]}  Bf8 {[%clk 0:00:24]} 27. Bf1 {[%clk 0:00:15]}  Qc5 {[%clk 0:00:21]} 28. Bc4 {[%clk 0:00:15]}  b5 {[%clk 0:00:20]} 29. Bd3 {[%clk 0:00:14]}  Qxd5 {[%clk 0:00:20]} 30. Qxd5 {[%clk 0:00:14]}  Bxd5 {[%clk 0:00:20]} 31. Bxb5 {[%clk 0:00:14]}  Be4 {[%clk 0:00:19]} 32. Bd4 {[%clk 0:00:14]}  a5 {[%clk 0:00:18]} 33. Bc4+ {[%clk 0:00:14]}  Kh7 {[%clk 0:00:17]} 34. Kf1 {[%clk 0:00:14]}  Bb4 {[%clk 0:00:17]} 35. a4 {[%clk 0:00:14]}  g6 {[%clk 0:00:17]} 36. Ke2 {[%clk 0:00:14]}  h5 {[%clk 0:00:17]} 37. Be5 {[%clk 0:00:14]}  c6 {[%clk 0:00:16]} 38. f3 {[%clk 0:00:13]}  Bd5 {[%clk 0:00:16]} 39. Bxd5 {[%clk 0:00:14]}  cxd5 {[%clk 0:00:16]} 40. Kd3 {[%clk 0:00:14]}  h4 {[%clk 0:00:16]} 41. Bf6 {[%clk 0:00:12]}  hxg3 {[%clk 0:00:15]} 42. hxg3 {[%clk 0:00:12]}  Be1 {[%clk 0:00:15]} 43. g4 {[%clk 0:00:12]}  Bf2 {[%clk 0:00:10]} 44. Bd8 {[%clk 0:00:11]}  Be1 {[%clk 0:00:08]} 45. Kd4 {[%clk 0:00:12]}  Bd2 {[%clk 0:00:07]} 46. Bc7 {[%clk 0:00:11]}  Kg7 {[%clk 0:00:05]} 47. Kxd5 {[%clk 0:00:11]}  Kf7 {[%clk 0:00:04]} 48. Kc6 {[%clk 0:00:11]}  Ke7 {[%clk 0:00:04]} 49. Kb5 {[%clk 0:00:11]}  Ke6 {[%clk 0:00:03]} 50. Bxa5 {[%clk 0:00:10]}  Bxf4 {[%clk 0:00:03]} 51. Bc3 {[%clk 0:00:10]} 1-0


[Site "https://www.chess.com"]

[Event "Titled Tuesday Blitz March 21 Early 2023"]
[White "Kozin, Yuri"]
[Black "Szyszylo, Rafal"]
[WhiteFideId "4129920"]
[BlackFideId "1109626"]
[WhiteElo "2507"]
[BlackElo "1951"]
[Result "0-1"]
[Round "11"]
[TimeControl "180+2"]
[Date "2023.03.21"]
[WhiteClock "0:00:11"]
[BlackClock "0:00:04"]

1. e4 {[%clk 0:02:24]}  g6 {[%clk 0:02:55]} 2. d4 {[%clk 0:02:23]}  d6 {[%clk 0:02:55]} 3. Nc3 {[%clk 0:02:23]}  Nf6 {[%clk 0:02:56]} 4. Nf3 {[%clk 0:02:21]}  Bg7 {[%clk 0:02:55]} 5. Be3 {[%clk 0:02:20]}  Bg4 {[%clk 0:02:55]} 6. Qd2 {[%clk 0:02:17]}  Nc6 {[%clk 0:02:54]} 7. h4 {[%clk 0:02:17]}  h5 {[%clk 0:02:53]} 8. Ng5 {[%clk 0:02:18]}  e5 {[%clk 0:02:50]} 9. Bc4 {[%clk 0:02:11]}  O-O {[%clk 0:02:48]} 10. f3 {[%clk 0:01:48]}  exd4 {[%clk 0:02:44]} 11. Bxd4 {[%clk 0:01:43]}  Nxd4 {[%clk 0:02:42]} 12. Qxd4 {[%clk 0:01:43]}  Nxe4 {[%clk 0:02:38]} 13. Qxe4 {[%clk 0:01:39]}  Bxc3+ {[%clk 0:02:07]} 14. bxc3 {[%clk 0:01:37]}  Qf6 {[%clk 0:02:02]} 15. O-O {[%clk 0:01:25]}  Bf5 {[%clk 0:01:59]} 16. Qxb7 {[%clk 0:01:15]}  Qxc3 {[%clk 0:01:58]} 17. Bxf7+ {[%clk 0:01:04]}  Kg7 {[%clk 0:01:57]} 18. Qd5 {[%clk 0:00:31]}  c6 {[%clk 0:01:46]} 19. Qxd6 {[%clk 0:00:19]}  Rxf7 {[%clk 0:01:41]} 20. Nxf7 {[%clk 0:00:17]}  Kxf7 {[%clk 0:01:42]} 21. Rab1 {[%clk 0:00:15]}  Re8 {[%clk 0:01:15]} 22. Rb7+ {[%clk 0:00:14]}  Kg8 {[%clk 0:01:15]} 23. Qf4 {[%clk 0:00:12]}  Qc5+ {[%clk 0:00:26]} 24. Kh1 {[%clk 0:00:12]}  Qe5 {[%clk 0:00:07]} 25. Qh6 {[%clk 0:00:11]}  Re7 {[%clk 0:00:07]} 26. Rxe7 {[%clk 0:00:09]}  Qxe7 {[%clk 0:00:07]} 27. Rb1 {[%clk 0:00:09]}  Qxh4+ {[%clk 0:00:07]} 28. Kg1 {[%clk 0:00:08]}  Qd4+ {[%clk 0:00:08]} 29. Kf1 {[%clk 0:00:08]}  Bd3+ {[%clk 0:00:07]} 30. cxd3 {[%clk 0:00:07]}  Qxd3+ {[%clk 0:00:08]} 31. Kf2 {[%clk 0:00:07]}  Qxb1 {[%clk 0:00:08]} 32. Qg5 {[%clk 0:00:08]}  Qxa2+ {[%clk 0:00:06]} 33. Kg3 {[%clk 0:00:08]}  Qe6 {[%clk 0:00:06]} 34. Qd8+ {[%clk 0:00:08]}  Kh7 {[%clk 0:00:05]} 35. Qc7+ {[%clk 0:00:09]}  Kh6 {[%clk 0:00:06]} 36. Qxa7 {[%clk 0:00:09]}  Qe5+ {[%clk 0:00:05]} 37. Kf2 {[%clk 0:00:10]}  Qd5 {[%clk 0:00:05]} 38. Qe7 {[%clk 0:00:09]}  Qd4+ {[%clk 0:00:05]} 39. Kf1 {[%clk 0:00:09]}  c5 {[%clk 0:00:05]} 40. g3 {[%clk 0:00:07]}  c4 {[%clk 0:00:04]} 41. f4 {[%clk 0:00:08]}  c3 {[%clk 0:00:04]} 42. Qf8+ {[%clk 0:00:08]}  Kh7 {[%clk 0:00:04]} 43. Qe7+ {[%clk 0:00:09]}  Kg8 {[%clk 0:00:03]} 44. Qe8+ {[%clk 0:00:09]}  Kg7 {[%clk 0:00:03]} 45. Qe7+ {[%clk 0:00:10]}  Kh6 {[%clk 0:00:03]} 46. Qc7 {[%clk 0:00:09]}  Qd3+ {[%clk 0:00:02]} 47. Kg2 {[%clk 0:00:09]}  Qd2+ {[%clk 0:00:02]} 48. Kh3 {[%clk 0:00:10]}  c2 {[%clk 0:00:01]} 49. Qc8 {[%clk 0:00:09]}  Kg7 {[%clk 0:00:01]} 50. Qc7+ {[%clk 0:00:09]}  Kf8 {[%clk 0:00:02]} 51. Qc8+ {[%clk 0:00:09]}  Ke7 {[%clk 0:00:02]} 52. Qc7+ {[%clk 0:00:10]}  Qd7+ {[%clk 0:00:02]} 53. Qxd7+ {[%clk 0:00:09]}  Kxd7 {[%clk 0:00:03]} 54. Kh4 {[%clk 0:00:10]}  c1=Q {[%clk 0:00:04]} 55. Kg5 {[%clk 0:00:11]}  Qd2 {[%clk 0:00:04]} 0-1


[Site "https://www.chess.com"]